fUSD/lending_fUSD_20250724
["ID","MTS","AMOUNT","RATE_DAILY","PERIOD"]
[374505918,1753329053933,-276.19465298,0.00025105,4]
[374505919,1753329053942,-150.0,0.00025109,4]
[374505920,1753329053952,-500.0,0.00025112,7]
[374505921,1753329053962,-150.0,0.00025117,2]
[374505922,1753329053972,-150.0,0.0002512,4]
[374505923,1753329053982,-150.0,0.00025121,2]
[374505924,1753329053992,-150.0,0.00025123,4]
[374505925,1753329054004,-150.0,0.00025128,4]
[374505926,1753329054014,-276.19465298,0.00025133,4]
[374505927,1753329054024,-206.01938104,0.00025135,12]
[374505928,1753329054034,-150.0,0.00025149,4]
[374505929,1753329054044,-150.0,0.00025151,4]
[374505930,1753329054054,-151.0,0.00025155,7]
[374505931,1753329054064,-150.0,0.00025155,4]
[374505932,1753329054074,-276.19465298,0.0002516,4]
[374505933,1753329054083,-150.0,0.00025165,4]
[374505934,1753329054094,-150.0,0.00025172,4]
[374505935,1753329054104,-150.0,0.00025178,4]
[374505936,1753329054114,-276.19465298,0.00025187,4]
[374505937,1753329054125,-150.0,0.00025187,4]
[374505938,1753329054134,-150.0,0.00025187,4]
[374505939,1753329054144,-1919.0,0.00025192,2]
[374505940,1753329054154,-920.0,0.00025192,2]
[374505941,1753329054163,-3510.19536389,0.00025203,2]
[374505942,1753329054174,-150.0,0.00025206,4]
[374505943,1753329054184,-150.0,0.00025207,2]
[374505944,1753329054194,-276.19465298,0.00025214,4]
[374505945,1753329054204,-150.0,0.00025217,4]
[374505946,1753329054214,-150.0,0.00025219,4]
[374505947,1753329054224,-150.0,0.00025226,4]
[374505948,1753329054234,-150.0,0.00025232,4]
[374505949,1753329054244,-150.0,0.00025235,4]
[374505950,1753329054254,-276.19465298,0.00025242,4]
[374505951,1753329054264,-150.0,0.00025251,4]
[374505952,1753329054274,-150.0,0.00025259,4]
[374505953,1753329054288,-150.0,0.00025261,4]
[374505954,1753329054298,-150.0,0.00025264,4]
[374505955,1753329054308,-150.0,0.00025264,2]
[374505956,1753329054318,-276.19465298,0.00025269,4]
[374505957,1753329054328,-150.0,0.00025284,4]
[374505958,1753329054338,-150.0,0.00025292,4]
[374505959,1753329054348,-276.19465298,0.00025296,4]
[374505960,1753329054359,-150.0,0.000253,4]
[374505961,1753329054369,-150.0,0.000253,4]
[374505962,1753329054379,-150.0,0.00025305,4]
[374505963,1753329054390,-150.0,0.00025309,2]
[374505964,1753329054399,-150.0,0.00025316,4]
[374505965,1753329054409,-169.84,0.00025316,2]
[374505966,1753329054419,-1007.65760279,0.00025321,2]
[374505967,1753329054429,-1000.0,0.00025321,2]
[374505968,1753329054438,-150.22884901,0.00025321,2]
[374505969,1753329054449,-150.0,0.00025321,4]
[374505970,1753329054458,-276.19465298,0.00025324,4]
[374505971,1753329054468,-1118.0,0.00025326,2]
[374505972,1753329054477,-150.0,0.00025334,2]
[374505973,1753329054487,-150.0,0.00025344,4]
[374505974,1753329054496,-150.0,0.00025348,4]
[374505975,1753329054505,-150.0,0.00025349,4]
[374505976,1753329054515,-179.17813619,0.0002535,2]
[374505977,1753329054525,-150.0,0.0002535,4]
[374505978,1753329054534,-276.19465298,0.00025351,4]
[374505979,1753329054544,-151.0,0.00025351,2]
[374505980,1753329054554,-150.0,0.00025355,2]
[374505981,1753329054563,-1521.98931461,0.00025366,2]
[374505982,1753329054574,-150.0,0.00025367,4]
[374505983,1753329054583,-150.0,0.00025367,4]
[374505984,1753329054593,-150.0,0.00025367,4]
[374505985,1753329054603,-150.0,0.00025378,2]
[374505986,1753329054612,-276.19465298,0.00025378,4]
[374505987,1753329054623,-150.0,0.00025379,4]
[374505988,1753329054632,-150.0,0.0002538,4]
[374505989,1753329054641,-150.0,0.0002538,2]
[374505990,1753329054651,-500.0,0.00025386,7]
[374505991,1753329054661,-150.0,0.0002539,2]
[374505992,1753329054670,-393.35213223,0.00025392,2]
[374505993,1753329054680,-150.0,0.00025394,4]
[374505994,1753329054689,-150.0,0.00025396,2]
[374505995,1753329054699,-150.0,0.00025398,2]
[374505996,1753329054708,-150.0,0.00025398,2]
[374505997,1753329054718,-150.0,0.00025398,2]
[374505998,1753329054727,-150.0,0.00025398,2]
[374505999,1753329054737,-150.0,0.00025398,2]
[374506000,1753329054746,-1000.0,0.00025399,2]
[374506001,1753329054757,-41736.82603391,0.000254,5]
[374506002,1753329054766,-151.0,0.000254,7]
[374506003,1753329054776,-276.19465298,0.00025405,4]
[374506004,1753329054787,-150.0,0.00025407,4]
[374506005,1753329054796,-150.0,0.0002541,2]
[374506006,1753329054806,-150.0,0.00025412,4]
[374506007,1753329054816,-206.01938104,0.00025429,13]
[374506008,1753329054825,-150.0,0.00025431,2]
[374506009,1753329054835,-276.19465298,0.00025433,4]
[374506010,1753329054844,-150.0,0.00025435,4]
[374506011,1753329054854,-150.0,0.00025436,4]
[374506012,1753329054864,-150.0,0.00025438,4]
[374506013,1753329054874,-150.0,0.00025444,4]
[374506014,1753329054884,-150.0,0.00025444,4]
[374506015,1753329054893,-276.19465298,0.0002546,4]
[374506016,1753329054903,-151.0,0.0002546,7]
[374506017,1753329054913,-151.0,0.0002546,7]
[374506018,1753329054923,-151.0,0.0002546,7]
[374506019,1753329054932,-151.0,0.0002546,7]
[374506020,1753329054942,-201.840783,0.0002546,7]
[374506021,1753329054951,-151.0,0.0002546,7]
[374506022,1753329054961,-201.840783,0.0002546,7]
[374506023,1753329054971,-160.883168,0.0002546,7]
[374506024,1753329054980,-153.762703,0.0002546,7]
[374506025,1753329054990,-153.762703,0.0002546,7]
[374506026,1753329055001,-234.563674,0.0002546,7]
[374506027,1753329055011,-234.563674,0.0002546,7]
[374506028,1753329055027,-234.482178,0.0002546,7]
[374506029,1753329055040,-234.482178,0.0002546,7]
[374506030,1753329055050,-233.797699,0.0002546,7]
[374506031,1753329055061,-233.797699,0.0002546,7]
[374506032,1753329055072,-284.696456,0.0002546,7]
[374506033,1753329055082,-151.0,0.0002546,7]
[374506034,1753329055092,-513.526302,0.0002546,7]
[374506035,1753329055102,-513.526302,0.0002546,7]
[374506036,1753329055112,-216.596582,0.0002546,7]
[374506037,1753329055123,-150.0,0.00025461,4]
[374506038,1753329055134,-150.0,0.00025465,4]
[374506039,1753329055143,-1919.0,0.00025466,2]
[374506040,1753329055154,-920.0,0.00025466,2]
[374506041,1753329055164,-150.0,0.00025466,2]
[374506042,1753329055174,-150.0,0.00025467,2]
[374506043,1753329055184,-521.0,0.00025472,2]
[374506044,1753329055194,-500.0,0.00025472,2]
[374506045,1753329055206,-500.0,0.00025472,2]
[374506046,1753329055216,-500.0,0.00025472,2]
[374506047,1753329055226,-565.0,0.00025472,2]
[374506048,1753329055236,-780.0,0.00025472,2]
[374506049,1753329055246,-150.0,0.00025474,2]
[374506050,1753329055257,-150.0,0.00025475,4]
[374506051,1753329055267,-150.0,0.00025476,4]
[374506052,1753329055278,-151.0,0.0002548,7]
[374506053,1753329055292,-150.0,0.00025482,4]
[374506054,1753329055303,-276.19465298,0.00025487,4]
[374506055,1753329055313,-150.0,0.00025493,4]
[374506056,1753329055323,-150.0,0.00025502,4]
[374506057,1753329055334,-150.0,0.00025502,4]
[374506058,1753329055344,-150.0,0.00025508,4]
[374506059,1753329055354,-151.0,0.00025509,7]
[374506060,1753329055365,-151.0,0.00025509,7]
[374506061,1753329055375,-2473.69,0.00025512,2]
[374506062,1753329055385,-308.58,0.00025512,2]
[374506063,1753329055395,-356.94,0.00025512,2]
[374506064,1753329055406,-708.28,0.00025512,2]
[374506065,1753329055561,-333.75,0.00025512,2]
[374506066,1753329055571,-276.19465298,0.00025514,4]
[374506067,1753329055581,-150.0,0.00025522,4]
[374506068,1753329055592,-150.0,0.00025526,4]
[374506069,1753329055601,-150.0,0.00025527,2]
[374506070,1753329055610,-150.0,0.0002553,2]
[374506071,1753329055620,-150.0,0.00025541,4]
[374506072,1753329055629,-276.19465298,0.00025542,4]
[374506073,1753329055639,-3510.19536389,0.00025542,2]
[374506074,1753329055648,-150.0,0.00025547,2]
[374506075,1753329055658,-646.0,0.0002555,2]
[374506076,1753329055667,-150.0,0.00025551,4]
[374506077,1753329055677,-832.55,0.00025557,2]
[374506078,1753329055686,-276.19465298,0.00025569,4]
[374506079,1753329055696,-150.0,0.0002557,4]
[374506080,1753329055706,-150.0,0.00025571,4]
[374506081,1753329055716,-150.0,0.00025573,4]
[374506082,1753329055726,-150.0,0.00025578,4]
[374506083,1753329055735,-150.0,0.0002558,4]
[374506084,1753329055746,-150.0,0.00025583,4]
[374506085,1753329055755,-276.19465298,0.00025596,4]
[374506086,1753329055765,-150.0,0.00025605,4]
[374506087,1753329055775,-150.0,0.00025608,4]
[374506088,1753329055788,-150.0,0.00025613,2]
[374506089,1753329055798,-150.0,0.00025615,4]
[374506090,1753329055809,-2000.0,0.00025616,2]
[374506091,1753329055820,-698.56363645,0.00025616,2]
[374506092,1753329055830,-2000.0,0.00025616,2]
[374506093,1753329055839,-1770.84417564,0.00025616,2]
[374506094,1753329055850,-354.139638,0.00025618,7]
[374506095,1753329055859,-151.0,0.00025618,7]
[374506096,1753329055869,-354.139638,0.00025618,7]
[374506097,1753329055878,-171.912537,0.00025618,7]
[374506098,1753329055892,-151.0,0.00025618,7]
[374506099,1753329055902,-151.0,0.00025618,7]
[374506100,1753329055912,-678.473947,0.00025618,7]
[374506101,1753329055921,-678.473953,0.00025618,7]
[374506102,1753329055931,-285.24,0.00025618,7]
[374506103,1753329055942,-290.034983,0.00025618,7]
[374506104,1753329055952,-150.0,0.00025622,2]
[374506105,1753329055961,-276.19465298,0.00025623,4]
[374506106,1753329055972,-150.0,0.00025631,2]
[374506107,1753329055983,-150.0,0.00025637,4]
[374506108,1753329055993,-150.0,0.00025637,4]
[374506109,1753329056003,-150.0,0.00025637,4]
[374506110,1753329056012,-150.0,0.00025637,4]
[374506111,1753329056022,-150.0,0.00025637,4]
[374506112,1753329056035,-150.0,0.00025637,4]
[374506113,1753329056046,-150.0,0.00025637,4]
[374506114,1753329056056,-150.0,0.00025641,2]
[374506115,1753329056076,-276.19465298,0.00025651,4]
[374506116,1753329056087,-150.0,0.00025653,2]
[374506117,1753329056097,-151.0,0.00025655,7]
[374506118,1753329056107,-151.0,0.00025655,7]
[374506119,1753329056127,-180.808131,0.00025655,7]
[374506120,1753329056138,-180.808131,0.00025655,7]
[374506121,1753329056149,-317.742185,0.00025655,7]
[374506122,1753329056159,-317.742185,0.00025655,7]
[374506123,1753329056170,-150.0,0.00025658,2]
[374506124,1753329056180,-150.0,0.00025659,4]
[374506125,1753329056192,-500.0,0.0002566,7]
[374506126,1753329056202,-150.0,0.00025666,4]
[374506127,1753329056211,-150.0,0.00025669,4]
[374506128,1753329056221,-276.19465298,0.00025678,4]
[374506129,1753329056231,-150.0,0.00025691,4]
[374506130,1753329056241,-150.0,0.00025691,2]
[374506131,1753329056251,-150.0,0.00025694,4]
[374506132,1753329056261,-150.0,0.00025696,4]
[374506133,1753329056271,-150.0,0.00025701,4]
[374506134,1753329056282,-150.0,0.00025703,4]
[374506135,1753329056295,-150.0,0.00025704,2]
[374506136,1753329056305,-150.0,0.00025704,4]
[374506137,1753329056314,-651.2437371,0.00025705,10]
[374506138,1753329056324,-276.19465298,0.00025705,4]
[374506139,1753329056334,-503.0,0.00025721,4]
[374506140,1753329056344,-150.0,0.00025723,4]
[374506141,1753329056354,-206.01938104,0.00025724,13]
[374506142,1753329056365,-150.0,0.00025725,2]
[374506143,1753329056374,-276.19465298,0.00025732,4]
[374506144,1753329056384,-150.0,0.00025733,4]
[374506145,1753329056394,-151.0,0.00025734,2]
[374506146,1753329056403,-1919.0,0.0002574,2]
[374506147,1753329056413,-920.0,0.0002574,2]
[374506148,1753329056423,-150.0,0.00025748,4]
[374506149,1753329056432,-1521.98931461,0.00025749,2]
[374506150,1753329056442,-150.0,0.00025752,4]
[374506151,1753329056452,-276.19465298,0.0002576,4]
[374506152,1753329056463,-807.0,0.00025762,2]
[374506153,1753329056483,-3354.0,0.00025762,2]
[374506154,1753329056494,-953.0,0.00025762,2]
[374506155,1753329056504,-1269.0,0.00025762,2]
[374506156,1753329056514,-960.0,0.00025762,2]
[374506157,1753329056523,-563.0,0.00025762,2]
[374506158,1753329056534,-2018.0,0.00025762,2]
[374506159,1753329056544,-890.0,0.00025762,2]
[374506160,1753329056554,-1167.0,0.00025762,2]
[374506161,1753329056564,-1688.0,0.00025762,2]
[374506162,1753329056576,-596.0,0.00025762,2]
[374506163,1753329056586,-1289.0,0.00025762,2]
[374506164,1753329056596,-21379.0,0.00025762,2]
[374506165,1753329056607,-6055.0,0.00025762,2]
[374506166,1753329056617,-4129.0,0.00025762,2]
[374506167,1753329056627,-863.0,0.00025762,2]
[374506168,1753329056637,-150.0,0.00025765,4]
[374506169,1753329056648,-150.0,0.00025772,4]
[374506170,1753329056658,-150.0,0.00025772,4]
[374506171,1753329056668,-150.0,0.00025781,4]
[374506172,1753329056677,-150.0,0.00025784,2]
[374506173,1753329056687,-276.19465298,0.00025787,4]
[374506174,1753329056697,-150.0,0.00025792,4]
[374506175,1753329056707,-150.0,0.00025798,4]
[374506176,1753329056719,-150.0,0.00025799,4]
[374506177,1753329056728,-1479.11,0.000258,7]
[374506178,1753329056739,-150.0,0.00025809,4]
[374506179,1753329056751,-150.0,0.00025812,2]
[374506180,1753329056760,-150.0,0.00025813,4]
[374506181,1753329056771,-276.19465298,0.00025814,4]
[374506182,1753329056781,-150.0,0.0002583,4]
[374506183,1753329056792,-150.0,0.0002583,4]
[374506184,1753329056801,-150.0,0.00025836,4]
[374506185,1753329056811,-978.31996814,0.00025837,2]
[374506186,1753329056821,-150.0,0.00025838,4]
[374506187,1753329056831,-150.0,0.00025838,2]
[374506188,1753329056840,-150.0,0.00025839,4]
[374506189,1753329056850,-150.0,0.00025839,4]
[374506190,1753329056860,-276.19465298,0.00025841,4]
[374506191,1753329056869,-150.0,0.00025862,4]
[374506192,1753329056879,-233.797699,0.00025862,7]
[374506193,1753329056888,-233.797699,0.00025862,7]
[374506194,1753329056898,-513.526302,0.00025862,7]
[374506195,1753329056908,-513.526302,0.00025862,7]
[374506196,1753329056921,-201.840783,0.00025863,7]
[374506197,1753329056931,-201.840783,0.00025863,7]
[374506198,1753329056941,-150.0,0.00025867,4]
[374506199,1753329056951,-234.482178,0.00025867,7]
[374506200,1753329056961,-234.482178,0.00025867,7]
[374506201,1753329056972,-247.820589,0.00025867,7]
[374506202,1753329056981,-216.596582,0.00025867,7]
[374506203,1753329056991,-1500.0,0.00025868,2]
[374506204,1753329057000,-276.19465298,0.00025869,4]
[374506205,1753329057010,-153.762703,0.00025869,7]
[374506206,1753329057019,-153.762703,0.00025869,7]
[374506207,1753329057029,-150.0,0.0002588,4]
[374506208,1753329057040,-3510.19536389,0.00025882,2]
[374506209,1753329057050,-168.0,0.0002589,7]
[374506210,1753329057060,-150.0,0.00025894,4]
[374506211,1753329057070,-150.0,0.00025895,4]
[374506212,1753329057080,-276.19465298,0.00025896,4]
[374506213,1753329057090,-3560.66,0.000259,14]
[374506214,1753329057100,-151.0,0.000259,7]
[374506215,1753329057110,-151.0,0.000259,7]
[374506216,1753329057120,-150.0,0.00025907,4]
[374506217,1753329057130,-150.0,0.00025907,4]
[374506218,1753329057140,-150.0,0.00025907,4]
[374506219,1753329057150,-150.0,0.00025907,4]
[374506220,1753329057160,-150.0,0.00025918,2]
[374506221,1753329057170,-203.0,0.0002592,2]
[374506222,1753329057180,-234.563674,0.00025923,7]
[374506223,1753329057196,-234.563674,0.00025923,7]
[374506224,1753329057206,-276.19465298,0.00025923,4]
[374506225,1753329057216,-150.0,0.00025924,4]
[374506226,1753329057227,-150.0,0.00025925,4]
[374506227,1753329057239,-150.0,0.00025926,4]
[374506228,1753329057249,-150.0,0.0002593,4]
[374506229,1753329057259,-500.0,0.00025934,7]
[374506230,1753329057268,-276.19465298,0.0002595,4]
[374506231,1753329057279,-150.0,0.00025953,4]
[374506232,1753329057292,-151.0,0.00025954,7]
[374506233,1753329057303,-150.0,0.00025958,4]
[374506234,1753329057313,-150.0,0.00025969,4]
[374506235,1753329057323,-310.55046899,0.0002597,2]
[374506236,1753329057334,-150.0,0.00025973,2]
[374506237,1753329057344,-150.0,0.00025974,4]
[374506238,1753329057355,-150.0,0.00025974,4]
[374506239,1753329057367,-150.0,0.00025974,4]
[374506240,1753329057377,-276.19465298,0.00025978,4]
[374506241,1753329057387,-150.0,0.00025978,2]
[374506242,1753329057400,-150.0,0.00025981,4]
[374506243,1753329057412,-584.48408809,0.0002599,2]
[374506244,1753329057423,-150.0,0.0002599,4]
[374506245,1753329057432,-150.0,0.00025991,2]
[374506246,1753329057442,-1881.54444948,0.00025999,2]
[374506247,1753329057453,-4403.89231647,0.00026,2]
[374506248,1753329057462,-4433.65,0.00026,2]
[374506249,1753329057472,-1314.24957387,0.00026,2]
[374506250,1753329057482,-210.0,0.00026,2]
[374506251,1753329057492,-5555.28530259,0.00026,2]
[374506252,1753329057502,-6000.0,0.00026,3]
[374506253,1753329057512,-77061.61,0.00026,7]
[374506254,1753329057521,-223.937154,0.00026,7]
[374506255,1753329057532,-151.0,0.00026,7]
[374506256,1753329057542,-151.0,0.00026,7]
[374506257,1753329057551,-210.923871,0.00026,7]
[374506258,1753329057563,-151.0,0.00026,7]
[374506259,1753329057573,-354.139638,0.00026,7]
[374506260,1753329057582,-354.139645,0.00026,7]
[374506261,1753329057593,-151.0,0.00026,7]
[374506262,1753329057603,-847.5306585,0.00026,2]
[374506263,1753329057612,-151.0,0.00026,7]
[374506264,1753329057622,-151.0,0.00026,7]
[374506265,1753329057632,-200.606297,0.00026,7]
[374506266,1753329057641,-2000.0,0.00026,2]
[374506267,1753329057651,-151.0,0.00026,7]
[374506268,1753329057660,-151.0,0.00026,7]
[374506269,1753329057670,-180.808131,0.00026,7]
[374506270,1753329057680,-180.808131,0.00026,7]
[374506271,1753329057690,-151.0,0.00026,7]
[374506272,1753329057700,-317.742185,0.00026,7]
[374506273,1753329057709,-317.742185,0.00026,7]
[374506274,1753329057720,-201.840783,0.00026,7]
[374506275,1753329057730,-151.0,0.00026,7]
[374506276,1753329057739,-201.840778,0.00026,7]
[374506277,1753329057749,-153.762703,0.00026,7]
[374506278,1753329057760,-153.762705,0.00026,7]
[374506279,1753329057769,-234.563674,0.00026,7]
[374506280,1753329057779,-234.563679,0.00026,7]
[374506281,1753329057790,-234.482178,0.00026,7]
[374506282,1753329057800,-234.482179,0.00026,7]
[374506283,1753329057810,-233.797699,0.00026,7]
[374506284,1753329057819,-233.797697,0.00026,7]
[374506285,1753329057829,-513.526302,0.00026,7]
[374506286,1753329057839,-513.526312,0.00026,7]
[374506287,1753329057849,-216.596582,0.00026,7]
[374506288,1753329057858,-276.19465298,0.00026005,4]
[374506289,1753329057868,-150.0,0.00026008,2]
[374506290,1753329057878,-150.0,0.0002601,4]
[374506291,1753329057888,-150.0,0.00026013,4]
[374506292,1753329057898,-1919.0,0.00026014,2]
[374506293,1753329057908,-920.0,0.00026014,2]
[374506294,1753329057918,-150.0,0.00026015,4]
[374506295,1753329057928,-150.0,0.00026015,2]
[374506296,1753329057937,-206.01938104,0.00026018,14]
[374506297,1753329057946,-150.0,0.00026023,4]
[374506298,1753329057956,-276.19465298,0.00026032,4]
[374506299,1753329057968,-150.0,0.00026039,4]
[374506300,1753329057978,-150.0,0.00026042,4]
[374506301,1753329057987,-150.0,0.00026042,4]
[374506302,1753329057997,-150.0,0.00026048,4]
[374506303,1753329058007,-150.0,0.00026055,4]
[374506304,1753329058017,-150.0,0.00026057,4]
[374506305,1753329058027,-276.19465298,0.00026059,4]
[374506306,1753329058038,-150.0,0.00026065,2]
[374506307,1753329058048,-150.0,0.00026068,4]
[374506308,1753329058058,-150.0,0.00026068,2]
[374506309,1753329058068,-276.19465298,0.00026087,4]
[374506310,1753329058078,-150.0,0.00026087,4]
[374506311,1753329058088,-150.0,0.00026087,4]
[374506312,1753329058098,-267.46074303,0.00026094,2]
[374506313,1753329058109,-150.0,0.00026096,4]
[374506314,1753329058120,-150.0,0.00026102,4]
[374506315,1753329058130,-150.0,0.00026109,4]
[374506316,1753329058139,-150.0,0.00026109,4]
[374506317,1753329058149,-276.19465298,0.00026114,4]
[374506318,1753329058159,-151.0,0.00026117,2]
[374506319,1753329058169,-150.0,0.00026119,4]
[374506320,1753329058179,-150.0,0.00026123,4]
[374506321,1753329058189,-150.0,0.00026124,2]
[374506322,1753329058199,-150.0,0.00026125,4]
[374506323,1753329058209,-150.0,0.00026128,2]
[374506324,1753329058219,-1521.98931461,0.00026133,2]
[374506325,1753329058229,-276.19465298,0.00026141,4]
[374506326,1753329058240,-150.0,0.00026146,4]
[374506327,1753329058250,-150.0,0.00026151,4]
[374506328,1753329058260,-150.0,0.00026154,4]
[374506329,1753329058271,-1400.40430613,0.00026164,2]
[374506330,1753329058281,-403.75301242,0.00026164,2]
[374506331,1753329058294,-150.0,0.00026165,4]
[374506332,1753329058303,-276.19465298,0.00026169,4]
[374506333,1753329058313,-150.0,0.00026177,4]
[374506334,1753329058322,-150.0,0.00026177,4]
[374506335,1753329058333,-150.0,0.00026182,4]
[374506336,1753329058343,-150.0,0.00026183,4]
[374506337,1753329058354,-150.0,0.00026186,2]
[374506338,1753329058364,-150.0,0.0002619,4]
[374506339,1753329058375,-276.19465298,0.00026196,4]
[374506340,1753329058385,-500.0,0.00026208,7]
[374506341,1753329058395,-150.0,0.00026211,4]
[374506342,1753329058406,-150.0,0.00026215,4]
[374506343,1753329058416,-150.0,0.00026215,4]
[374506344,1753329058426,-3510.19536389,0.00026221,2]
[374506345,1753329058436,-276.19465298,0.00026223,4]
[374506346,1753329058446,-150.0,0.00026231,4]
[374506347,1753329058457,-150.0,0.00026234,4]
[374506348,1753329058467,-150.0,0.0002624,4]
[374506349,1753329058476,-150.0,0.00026241,2]
[374506350,1753329058486,-150.0,0.00026244,4]
[374506351,1753329058496,-150.0,0.00026244,4]
[374506352,1753329058505,-150.0,0.00026247,2]
[374506353,1753329058515,-150.0,0.00026247,4]
[374506354,1753329058525,-276.19465298,0.0002625,4]
[374506355,1753329058537,-150.0,0.00026269,4]
[374506356,1753329058547,-276.19465298,0.00026278,4]
[374506357,1753329058556,-150.0,0.00026278,4]
[374506358,1753329058566,-150.0,0.0002628,4]
[374506359,1753329058577,-150.0,0.0002628,2]
[374506360,1753329058587,-150.0,0.00026282,4]
[374506361,1753329058600,-1919.0,0.00026288,2]
[374506362,1753329058610,-920.0,0.00026288,2]
[374506363,1753329058620,-150.0,0.00026289,2]
[374506364,1753329058630,-150.0,0.00026293,2]
[374506365,1753329058641,-150.0,0.00026297,4]
[374506366,1753329058652,-150.0,0.00026301,2]
[374506367,1753329058662,-393.35213223,0.00026304,2]
[374506368,1753329058672,-150.0,0.00026304,2]
[374506369,1753329058683,-276.19465298,0.00026305,4]
[374506370,1753329058694,-150.0,0.00026312,4]
[374506371,1753329058706,-150.0,0.00026312,4]
[374506372,1753329058715,-150.0,0.00026312,4]
[374506373,1753329058726,-150.0,0.00026312,4]
[374506374,1753329058736,-150.0,0.00026312,4]
[374506375,1753329058746,-206.01938104,0.00026312,14]
[374506376,1753329058756,-150.0,0.00026322,2]
[374506377,1753329058766,-150.0,0.00026323,4]
[374506378,1753329058776,-150.0,0.00026326,4]
[374506379,1753329058786,-276.19465298,0.00026332,4]
[374506380,1753329058796,-151.0,0.00026334,7]
[374506381,1753329058806,-150.0,0.00026339,4]
[374506382,1753329058815,-150.0,0.00026344,4]
[374506383,1753329058826,-150.0,0.00026355,4]
[374506384,1753329058835,-276.19465298,0.00026359,4]
[374506385,1753329058845,-150.0,0.00026367,4]
[374506386,1753329058856,-150.0,0.00026373,2]
[374506387,1753329058866,-150.0,0.00026374,2]
[374506388,1753329058876,-150.0,0.00026375,2]
[374506389,1753329058886,-150.0,0.00026376,4]
[374506390,1753329058896,-150.0,0.00026379,4]
[374506391,1753329058906,-150.0,0.00026379,4]
[374506392,1753329058916,-150.0,0.00026383,4]
[374506393,1753329058926,-150.0,0.00026386,2]
[374506394,1753329058935,-276.19465298,0.00026387,4]
[374506395,1753329058945,-150.0,0.000264,4]
[374506396,1753329058955,-150.0,0.00026408,4]
[374506397,1753329058964,-150.0,0.00026411,4]
[374506398,1753329058974,-150.0,0.00026412,4]
[374506399,1753329058984,-276.19465298,0.00026414,4]
[374506400,1753329058994,-150.0,0.00026415,2]
[374506401,1753329059004,-2114.93858476,0.00026416,2]
[374506402,1753329059014,-150.0,0.0002644,4]
[374506403,1753329059025,-150.0,0.00026441,4]
[374506404,1753329059036,-276.19465298,0.00026441,4]
[374506405,1753329059046,-150.0,0.00026447,4]
[374506406,1753329059056,-150.0,0.00026447,4]
[374506407,1753329059066,-150.0,0.00026447,4]
[374506408,1753329059076,-150.0,0.00026447,4]
[374506409,1753329059086,-500.0,0.00026447,2]
[374506410,1753329059096,-500.0,0.00026447,2]
[374506411,1753329059108,-500.0,0.00026447,2]
[374506412,1753329059119,-500.0,0.00026447,2]
[374506413,1753329059131,-500.0,0.00026447,2]
[374506414,1753329059141,-500.0,0.00026447,2]
[374506415,1753329059151,-500.0,0.00026447,2]
[374506416,1753329059160,-500.0,0.00026447,2]
[374506417,1753329059170,-500.0,0.00026447,2]